Cogmind - Beta 16.1 @@@ ROGUE MODE // 2026.02.19 @ 13:04:12 Player: MrWaffler Result: Destroyed by Y-45 Defender with Heavy Assault Rifle Performance ------------- Evolutions (2) 1000 Regions Visited (5) 1000 Robots Destroyed (30) 150 Value Destroyed (889) 889 Prototype IDs (3) 60 Alien Tech Used (0) 0 Bonus (0) 0 TOTAL SCORE: 3099 Bonus ------- None Cogmind --------- Core Integrity 0/550 Matter 121/300 Energy 9/100 System Corruption 5% Temperature Cool (27) Movement Flying (102) Ox1 Location -8/Storage Parts ------- > --- POWER (1) -------- (None) > --- PROPULSION (2) --- Improved VTOL Module Improved VTOL Module > --- UTILITY (5) ------ Medium Storage Unit Signal Interpreter Terrain Scanner Terrain Scan Processor ECM Suite > --- WEAPON (3) ------- Axe Axe > --- INVENTORY (10) --- Improved VTOL Module Improved VTOL Module Sensor Array Signal Interpreter Peak State ------------ > --- POWER ------------ (None) > --- PROPULSION ------- Improved Aluminum Leg Improved Aluminum Leg > --- UTILITY ---------- Medium Storage Unit Signal Interpreter Seismic Detector Drone Bay Drone Bay > --- WEAPON ----------- Ion Cannon Datajack Axe > --- INVENTORY -------- Improved VTOL Module Improved VTOL Module Improved VTOL Module Improved VTOL Module Sensor Array Signal Interpreter Terrain Scanner Terrain Scan Processor ECM Suite Drone Bay [Rating: 26] Favorites ----------- Power Ion Engine Engine Ion Engine Propulsion Improved Aluminum Leg Leg Improved Aluminum Leg Flight Unit Improved VTOL Module Utility Medium Storage Unit Device Sensor Array Storage Medium Storage Unit Processor Signal Interpreter Protection Utility Shielding Weapon Assault Rifle Energy Gun EM Shotgun Energy Cannon Ion Cannon Ballistic Gun Assault Rifle Ballistic Cannon Light Cannon Launcher Rocket Launcher Special Weapon Welding Torch Slashing Weapon Axe Special Melee Weapon Datajack Build | -11 -10 -10 -9 -8 -8 ------- Run | Yrd Mat Min Mat Mat Sto Slots Evolved 4 | . . . 2 2 . Power . | . . . . . . Propulsion . | . . . . . . Utility 3 | . . . 1 2 . Weapon 1 | . . . 1 . . Parts Attached 43 | 6 6 5 8 7 11 Power 2 | 1 . . 1 . . Engine 2 | 1 . . 1 . . Core . | . . . . . . Reactor . | . . . . . . Propulsion 15 | 2 3 3 2 2 3 Treads . | . . . . . . Leg 13 | 2 3 3 2 2 1 Wheel . | . . . . . . Hover . | . . . . . . Flight 2 | . . . . . 2 Utility 14 | 1 3 . 3 3 4 Device 9 | . 2 . 2 2 3 Storage 2 | 1 1 . . . . Processor 2 | . . . 1 . 1 Hackware . | . . . . . . Protection 1 | . . . . 1 . Artifact . | . . . . . . Weapon 12 | 2 . 2 2 2 4 Energy Gun 2 | . . . 1 1 . Energy Cannon 1 | . . . . . 1 Ballistic Gun 3 | 2 . 1 . . . Ballistic Cannon 1 | . . 1 . . . Launcher 1 | . . . 1 . . Special Weapon 1 | . . . . . 1 Impact Weapon . | . . . . . . Slashing Weapon 2 | . . . . . 2 Piercing Weapon . | . . . . . . Special Melee Weapon 1 | . . . . 1 . Unidentified Prototypes 1 | . . . . . 1 Parts Lost 18 | . 2 . . 11 5 Power 1 | . . . . 1 . Propulsion 6 | . 1 . . 3 2 Utility 5 | . . . . 3 2 Weapon 6 | . 1 . . 4 1 Highest Loss Streak 11 | . 1 . . 11 4 To Critical Strikes 1 | . . . . . 1 Average Backups 8 | . 5 9 9 8 8 Power . | . . . . . . Propulsion 2 | . . 2 3 2 2 Utility 5 | . 2 7 6 4 6 Weapon . | . 1 . . . . Tool/Special . | . . . . . . Unused Backups 17 | . 3 1 3 . 10 Power 2 | . 2 . . . . Propulsion 5 | . . . 3 . 2 Utility 8 | . . . . . 8 Weapon 2 | . 1 1 . . . Tool/Special . | . . . . . . Average Slot Usage (%) 95 | . 97 100 99 96 70 Engine 10 | . 14 14 11 8 . Leg 22 | . 27 28 22 17 16 Device 15 | . 12 14 13 17 21 Storage 11 | . 14 14 11 9 9 Processor 5 | . . . 8 9 9 Protection 2 | . . . . 8 . Ballistic Gun 13 | . 27 14 11 8 . Ballistic Cannon 7 | . . 14 11 8 . Launcher 3 | . . . 10 1 . Special Melee Weapon 2 | . . . . 6 7 Peak Build Rating 26 | 6 8 8 14 16 26 Average Rating 11 | 4 7 7 13 14 17 On Entrance 6 | . 6 7 8 14 6 Avg Prop Armor Cover (%) . | . . . . . . Naked Turns . | . . . . . . Heaviest Build 33 | 13 20 21 27 30 33 Greatest Support 26 | 20 20 20 26 26 26 Greatest Overweight (x) 7 | 4 1 1 1 1 7 Average Overweight (x) . | . . 1 . . . Largest Inventory Capacity 10 | 8 10 10 10 10 10 Average Capacity 9 | 7 8 10 10 10 10 Most Carried 10 | 2 10 10 10 9 10 Average Carried 8 | . 5 9 9 8 8 Final Capacity 10 | 8 10 10 10 10 10 Final Carried 10 | 2 10 10 10 5 4 Class Distribution -------------------- 70% | Mutant 29% | Skirmisher Dominant Class ---------------- Mutant | -10/Materials Mutant | -10/Mines Skirmisher | -9/Materials Mutant | -8/Materials Mutant | -8/Storage Resources | -11 -10 -10 -9 -8 -8 ----------- Run | Yrd Mat Min Mat Mat Sto Matter Collected 941 | 223 251 135 122 50 160 Remotely . | . . . . . . Salvage Created 1077 | . 358 150 359 100 110 Parts 55 | . 16 15 16 3 5 Haulers Intercepted 2 | . . . 2 . . Recyclers Shooed . | . . . . . . Parts Field Recycled . | . . . . . . Retrieved Matter . | . . . . . . Parts Self-Destructed . | . . . . . . Prevented . | . . . . . . Parts Restored . | . . . . . . Kills | -11 -10 -10 -9 -8 -8 ------- Run | Yrd Mat Min Mat Mat Sto Combat Hostiles Destroyed 24 | . 8 7 5 2 2 Melee 1 | . . . . . 1 Guns 11 | . 8 1 . 2 . Cannons 10 | . . 6 3 . 1 AOE 2 | . . . 2 . . Classes Destroyed 8 | . 1 1 4 2 . Worker 1 | . . . . 1 . Hauler 2 | . . . 2 . . Recycler 2 | . . . 2 . . Watcher 1 | . . . 1 . . Swarmer 4 | . . 4 . . . Grunt 16 | . 8 3 3 1 1 Brawler 1 | . . . . 1 . Sentry 3 | . . . 2 . 1 Best Kill Streak 5 | . 2 3 5 1 1 Combat Bots Only 4 | . 2 3 4 1 1 Max Kills in Single Turn 2 | . 1 1 2 1 1 Gunslinging . | . . . . . . Exploded 1 | . . . 1 . . Melee 1 | . . . . . 1 Uniques/NPCs Destroyed . | . . . . . . Combat | -11 -10 -10 -9 -8 -8 -------- Run | Yrd Mat Min Mat Mat Sto Hostile Shots Fired 269 | . 51 30 14 114 60 Missed 71 | . 11 8 4 33 15 Hits 198 | . 40 22 10 81 45 Melee 3 | . . . . 3 . Projectile 195 | . 40 22 10 78 45 Critical Strikes 11 | . . . 1 4 6 Damage Taken 2875 | . 541 241 149 1248 696 Core 734 | . 128 47 . 386 173 Absorbed by Shields . | . . . . . . Redirected to Shielding 53 | . . . . 53 . Core Remaining (%) 76 | 100 . 30 100 . . Volleys Fired 100 | 1 43 11 13 22 10 Largest 3 | 2 2 2 3 3 1 Hottest 95 | 40 40 50 95 83 60 Shots Fired 190 | 2 82 22 36 38 10 Gun 135 | 2 82 11 18 22 . Cannon 43 | . . 11 13 13 6 Launcher 8 | . . . 5 3 . Special 4 | . . . . . 4 Kinetic 162 | 2 82 22 26 30 . Thermal 15 | . . . . 5 10 Explosive 8 | . . . 5 3 . Electromagnetic 5 | . . . 5 . . Robot Hit Streak 15 | . 15 5 5 10 8 Robot Miss Streak 7 | . 7 3 5 3 1 Penetration Max . | . . . . . . Secondary Targets . | . . . . . . Shots Hit Robots 122 | . 54 12 18 27 11 Core Hits 64 | . 20 9 21 10 4 Critical Kills . | . . . . . . Critical Parts Destroyed . | . . . . . . Critical Strikes 1 | . . . . 1 . Blast 1 | . . . . 1 . Melee Attacks 6 | . . . . 3 3 Impact . | . . . . . . Slashing 2 | . . . . . 2 Piercing . | . . . . . . Sneak Attacks . | . . . . . . Combat Hostiles . | . . . . . . Follow-up Attacks . | . . . . . . Damage Inflicted 2225 | . 581 203 627 625 189 Guns 957 | . 581 62 115 199 . Cannons 583 | . . 141 146 160 136 Explosions 624 | . . . 366 258 . Melee 41 | . . . . . 41 Ramming 8 | . . . . 8 . Kinetic 1298 | . 581 203 204 310 . Thermal 197 | . . . . 49 148 Explosive 624 | . . . 366 258 . Electromagnetic 57 | . . . 57 . . Impact . | . . . . . . Slashing 41 | . . . . . 41 Piercing . | . . . . . . Highest Corruption 5 | . . . . 5 5 Average Corruption 4 | . . . . 4 5 Corruption Purged . | . . . . . . Corruption Blocked . | . . . . . . Effects 8 | . . . . 1 7 Matter Fused 1 | . . . . 1 . Heat Flow Errors 1 | . . . . . 1 Energy Discharges 2 | . . . . . 2 Parts Rejected 2 | . . . . . 2 Data Loss (minor) 2 | . . . . . 2 Overload Shots . | . . . . . . Overflow Damage . | . . . . . . Projectiles . | . . . . . . Explosions . | . . . . . . Melee . | . . . . . . Knockbacks 2 | . . 1 . 1 . Impact . | . . . . . . Kinetic 2 | . . 1 . 1 . Secondary . | . . . . . . Self-Inflicted Damage 41 | . . . . 41 . Shots 1 | . . . . 1 . Rammed . | . . . . . . Targets Rammed 3 | . . . . 3 . Kicked 3 | . . . . 3 . Crushed . | . . . . . . Highest Temperature 150 | . 18 19 85 37 150 Average Temperature 20 | . 8 9 36 9 32 Received Heat Transfer 1251 | . 303 75 72 450 351 Siege Activations . | . . . . . . Martial Activations . | . . . . . . Shielding Activations . | . . . . . . Robots Disrupted . | . . . . . . Combat Hostiles . | . . . . . . Robots Corrupted . | . . . . . . Combat Hostiles . | . . . . . . Parts Fried . | . . . . . . Impact Corruptions . | . . . . . . Robots Melted . | . . . . . . Combat Hostiles . | . . . . . . Parts Melted . | . . . . . . Heat Transferred 408 | . . . . 111 297 Parts Sabotaged . | . . . . . . Parts Stolen . | . . . . . . Parts Stripped . | . . . . . . Power Chain Reactions . | . . . . . . Alert | -11 -10 -10 -9 -8 -8 ------- Run | Yrd Mat Min Mat Mat Sto Maximum Alert Level . | . . . . . . Low Security (%) 100 | 100 100 100 100 100 100 Level 1 . | . . . . . . Level 2 . | . . . . . . Level 3 . | . . . . . . Level 4 . | . . . . . . Level 5 . | . . . . . . High Security . | . . . . . . Max Security . | . . . . . . Peak Influence 135 | . 74 95 135 51 25 Initial 51 | . . 25 13 51 . Average 9 | . 11 20 7 4 1 Influence Increases 806 | . 220 200 197 80 109 Destroy 0b10 Robot/C 480 | . 160 140 100 40 40 Destroy 0b10 Robot/NC 30 | . . . 25 5 . Destroy Leader 126 | . 40 30 36 10 10 Trap Triggered on 0b10 10 | . . . . . 10 Successful Hack 17 | . 5 . 8 . 4 Disable Machine 15 | . . . . . 15 Destroy Structure 53 | . . . 28 25 . Lose Combat Pursuer 75 | . 15 30 . . 30 Influence Decreases 786 | . 154 232 108 203 89 Entered New Map 134 | . . 41 21 72 . Time Decay 527 | . 134 191 87 80 35 Lost Part 96 | . 20 . . 51 25 Lost Ally 29 | . . . . . 29 Squads Dispatched 2 | . 1 . 1 . . Investigation 1 | . 1 . . . . Extermination . | . . . . . . Reinforcement 1 | . . . 1 . . Assault . | . . . . . . Garrison . | . . . . . . Intercept . | . . . . . . Searches Triggered . | . . . . . . Construction Impeded . | . . . . . . Haulers Reinforced . | . . . . . . Active Scanning Responses . | . . . . . . Cargo Convoy Interrupts . | . . . . . . Stealth | -11 -10 -10 -9 -8 -8 --------- Run | Yrd Mat Min Mat Mat Sto Distress Signals 7 | . 1 1 2 1 2 Communications Jammed . | . . . . . . Distress Signals . | . . . . . . Times Spotted 68 | . 23 9 12 15 9 Peak Tracking Total 8 | . 4 3 6 8 6 Tactical Retreats 10 | . 4 1 . 3 2 ECM-based Alert Blocks 11 | . 6 . . 5 . Traps | -11 -10 -10 -9 -8 -8 ------- Run | Yrd Mat Min Mat Mat Sto Traps Triggered . | . . . . . . Indirectly . | . . . . . . Trap Hack Attempts 7 | . . . . . 7 Triggered . | . . . . . . Disarmed . | . . . . . . Reprogrammed 1 | . . . . . 1 Reused 1 | . . . . . 1 Traps Extracted . | . . . . . . Installed . | . . . . . . Triggered 1 | . . . . . 1 Machines | -11 -10 -10 -9 -8 -8 ---------- Run | Yrd Mat Min Mat Mat Sto Machines Disabled 1 | . . . . . 1 Max in Single Turn 1 | . . . . . 1 Machines Repaired . | . . . . . . Machines Dismantled . | . . . . . . Machines Sabotaged . | . . . . . . Overloaded Fab Kills . | . . . . . . Hacking | -11 -10 -10 -9 -8 -8 --------- Run | Yrd Mat Min Mat Mat Sto Machines Accessed 10 | . 3 . 3 1 3 Terminals 9 | . 3 . 3 . 3 Fabricators . | . . . . . . Repair Stations 1 | . . . . 1 . Recycling Units . | . . . . . . Scanalyzers . | . . . . . . Garrison Access . | . . . . . . Total Hacks 26 | . 8 . 12 1 5 Successful 8 | . 1 . 5 . 2 Failed 18 | . 7 . 7 1 3 Catastrophic . | . . . . . . Database Lockouts . | . . . . . . Manual . | . . . . . . Terminals 25 | . 8 . 12 . 5 Fabricators . | . . . . . . Repair Stations 1 | . . . . 1 . Recycling Units . | . . . . . . Scanalyzers . | . . . . . . Garrison Access . | . . . . . . Terminal Hacks 8 | . 1 . 5 . 2 Record 2 | . . . 2 . . Prototype ID Bank 1 | . 1 . . . . Open Door 2 | . . . . . 2 Locate Traps 2 | . . . 2 . . Zone Layout 1 | . . . 1 . . Fabricator Hacks . | . . . . . . Repair Station Hacks . | . . . . . . Recycling Unit Hacks . | . . . . . . Scanalyzer . | . . . . . . Garrison Access Hacks . | . . . . . . Unauthorized Hacks . | . . . . . . Terminals . | . . . . . . Fabricators . | . . . . . . Repair Stations . | . . . . . . Recycling Units . | . . . . . . Scanalyzers . | . . . . . . Garrison Access . | . . . . . . Data Cores Recovered . | . . . . . . Used . | . . . . . . Hacking Detections 7 | . 3 . 2 . 2 Full Trace Events 1 | . 1 . . . . Feedback Events . | . . . . . . Feedback Blocked . | . . . . . . Robot Schematics Acquired . | . . . . . . Robots Built . | . . . . . . Authchips . | . . . . . . Time . | . . . . . . Total Robot Build Rating . | . . . . . . Part Schematics Acquired . | . . . . . . Parts Built . | . . . . . . Authchips . | . . . . . . Time . | . . . . . . Total Part Build Rating . | . . . . . . Part Studies Acquired . | . . . . . . Parts Repaired . | . . . . . . Time . | . . . . . . Parts Recycled . | . . . . . . Recycled Matter . | . . . . . . Retrieved Matter . | . . . . . . Retrieved Components . | . . . . . . Parts Scanalyzed . | . . . . . . Part Schematics Acquired . | . . . . . . Parts Damaged . | . . . . . . Bothacking | -11 -10 -10 -9 -8 -8 ------------ Run | Yrd Mat Min Mat Mat Sto Used RIF Installer . | . . . . . . Robots Hacked 2 | . . . . 1 1 Non-combat . | . . . . . . Combat 2 | . . . . 1 1 Robot Hacks Applied 2 | . . . . 1 1 parse_system 2 | . . . . 1 1 Relay Couplers Released . | . . . . . . Fabnet Peak Effective % . | . . . . . . Robots Rewired . | . . . . . . Allies Hacked . | . . . . . . Hacks Repelled . | . . . . . . Allies | -11 -10 -10 -9 -8 -8 -------- Run | Yrd Mat Min Mat Mat Sto Total Allies . | . . . . . . Largest Group . | . . . . . . Highest-Rated Group . | . . . . . . Highest-Rated Ally . | . . . . . . Total Orders . | . . . . . . Ally Attacks . | . . . . . . Total Damage . | . . . . . . Kills . | . . . . . . Allies Corrupted . | . . . . . . Allies Melted . | . . . . . . Intel | -11 -10 -10 -9 -8 -8 ------- Run | Yrd Mat Min Mat Mat Sto Active Infowar (turns) 3174 | . 669 725 933 813 34 Sensors 1494 | . . . 694 800 . Terrain 7 | . . . . . 7 Structural 238 | . . . 238 . . Seismic 1185 | . 186 725 241 6 27 ECM 1322 | . 483 . . 812 27 Robot Analysis Total . | . . . . . . Derelict Logs Recovered 1 | . . 1 . . . Drone Launches 16 | . . . . . 16 Drone Recoveries 4 | . . . . . 4 Exploration | -11 -10 -10 -9 -8 -8 ------------- Run | Yrd Mat Min Mat Mat Sto Turns Passed 3646 | 64 732 725 933 845 347 Spaces Moved 1433 | 37 355 277 296 277 191 Core 15 | 12 . . . . 3 Treads . | . . . . . . Legs 1416 | 25 355 277 296 277 186 Wheels . | . . . . . . Hover . | . . . . . . Flight 2 | . . . . . 2 Fastest Speed 50 | 50 120 190 120 120 102 Average Speed 154 | 137 120 190 150 180 134 Slowest Speed 400 | 250 190 190 190 190 400 Overloaded Moves . | . . . . . . Propulsion Burnouts . | . . . . . . Robots Hopped . | . . . . . . Potential Cave-ins . | . . . . . . Cave-ins Triggered . | . . . . . . Exploration Rate (%) 33 | 4 63 60 26 14 32 Regions Visited 5 Branch Regions 2 Pre-discovered Areas . | . . . . . . Known Exits Taken 1 | . . . 1 . . Unknown Exits Taken 4 | 1 1 1 . 1 . Scrap Searched 1 | . . 1 . . . Spaces Dug . | . . . . . . Terrain Destroyed 74 | . . . 49 25 . Melee . | . . . . . . Projectile . | . . . . . . AOE 74 | . . . 49 25 . Terrain Rammed . | . . . . . . Walls Destroyed . | . . . . . . Machines Disabled . | . . . . . . Actions | -11 -10 -10 -9 -8 -8 --------- Run | Yrd Mat Min Mat Mat Sto Total 2695 | 45 586 458 757 580 269 Wait 1034 | . 166 155 428 266 19 Move 1428 | 36 354 276 295 276 191 Hop . | . . . . . . Pick Up 35 | 2 11 4 5 . 13 Fast Attach 15 | 6 2 . 1 2 4 Attach 17 | . . 1 2 6 8 Detach 1 | . . . . 1 . Swap 16 | . 4 4 6 1 1 Drop 27 | . 6 7 7 . 7 Fire 100 | 1 43 11 13 22 10 Melee 6 | . . . . 3 3 Ram . | . . . . . . Kick 3 | . . . . 3 . Crush . | . . . . . . Escape Stasis . | . . . . . . Rewire . | . . . . . . Trap 7 | . . . . . 7 Miscellaneous 6 | . . . . . 6 Route ------- -11/Scrapyard -10/Materials (discovered 2 exits: [*Min x2]) -10/Mines (discovered 2 exits: *Mat / Sub) -9/Materials -8/Materials -8/Storage History --------- Turn | Location | Event 24 | -11/Scrapyard | Discovered new exit (range 15) 65 | -11/Scrapyard | Entered Materials 301 | -10/Materials | Build established: Mutant 425 | -10/Materials | Discovered new exit (range 8) 656 | -10/Materials | Discovered new exit (range 5) 780 | -10/Materials | Core integrity fell below 50% 797 | -10/Materials | Entered Mines 1148 | -10/Mines | Found DCF Scrap (15 items) 1204 | -10/Mines | Identified exit to Subcaves 1217 | -10/Mines | Received a Rocket Launcher from a helpful Derelict 1254 | -10/Mines | Excavation squad dispatched 1254 | -10/Mines | A large section of the Mines collapsed 1487 | -10/Mines | Discovered new exit (range 3) 1522 | -10/Mines | Entered Materials 1522 | -9/Materials | Evolved 2 slots: Utility x1, Weapon x1 1843 | -9/Materials | Build established: Skirmisher 2390 | -9/Materials | Discovered new exit (range 12) 2453 | -9/Materials | Identified exit to Materials 2455 | -9/Materials | Entered another Materials area 2455 | -8/Materials | Evolved 2 slots: Utility x2 2884 | -8/Materials | Build established: Mutant 3207 | -8/Materials | Discovered new exit (range 15) 3279 | -8/Materials | Core integrity fell below 50% 3300 | -8/Materials | Entered Storage 3316 | -8/Storage | Lost 11 parts (1p3n3u4w) 3441 | -8/Storage | Core integrity fell below 20% 3531 | -8/Storage | Lost 4 allies 3634 | -8/Storage | Lost 8 allies 3647 | -8/Storage | Destroyed by Y-45 Defender with Heavy Assault Rifle Last Messages --------------- 03585_ Drone destroyed. 03585_ Drone retrieval failed, bay integrity insufficient for repairs. 03588_ Drone destroyed. 03591_ Storage Shell breached. 03596_ Acquired Axe. 03599_ Imp. Aluminum Leg destroyed. 03599_ Critical hit (Burn: +37). 03602_ Critical hit (Destroy). 03602_ Drone Bay destroyed. 03603_ >> Lost connection to Drone. 03603_ Drone destroyed. 03607_ System corrupted: Datajack rejected. 03630_ Imp. Aluminum Leg destroyed. 03634_ System corrupted: Component data lost. 03634_ Ion Cannon destroyed. 03640_ Critical hit (Burn: +37). 03641_ Identified Imp. VTOL Module. 03646_ G-47 Trooper destroyed. 03647_ Critical hit (Burn: +37). Map ----- +----------------------------------------------------+ | ???# """""" + " """ """ ?? | | ???# ?????" # % # """ """???? | | ???# ?????" # # ??? | | #### """""" # # #?? | | / *%! %/% # #?? | | ####/#######+#############?? | | # =## %#?????????????? | | # % #T #?????????????? | | %+! ! %## #?????????????? | | ## *# = | ## !=#?????????????? | | ?##%########### !=#?????????????? | | ?##+#######???# !=#?????????????? | | ?# #???# !=#???????????#?? | | ?# """"" #???#####?????#???????? | | ?#% """"" ##########????????????? | | ?#! """"" # """" ##???????????? | | ?#! # """" ????????????? | | ?# """ # """" #??#?????????? | | ?# """ # """" ############?? | | ?# !""" # ## #?? | | ?# [ ! # ! ## """ #?# | | ?#####/####?? ??#/""""?" #?? | | ### #######+##### "/"??" #?? | | + % % * / " "??" #?? | | ### %% # !""""g #?? | | ???# ########## +%"""@ Y ##? | | ???######????????# # [%= #?# | | ?????????????????# ###########?? | | ?????????????????# #???? ??????? | | ?????????????????# #?????? ???#? | | ?????????????????# #???????????? | | ?????????????????# #???????????? | | ?????????????????# #???????????? | | ?????????????????# #????"?"????? | | ?????????????????# #???????????? | | ?????????????????+ +???????????? | | ?????????????????# #???????????? | | ?????????????????# #???????????? | | ?????????????????# ????????????? | | ?????????????????? ????????????? | | ??????????????????""????????????? | | ????????????????????????????????? | | ????????????????????????????????? | | ????????????????????????????????? | | ????????????????????????????????? | | ????????????????????????????????? | | ????????????????????????????????? | | ????????????????????????????????? | | ????????????????????????????????? | | ????????????????????????????????? | +----------------------------------------------------+ Best States ------------- Heat Dissipation 31 Energy Generation 12 Energy Capacity 265 Matter Stores 300 Matter Capacity 300 Sight Range 16 Robot Scan Range 14 Terrain Scan Range 14 Terrain Scan Density 85 ECM Strength 1 Utility Shielding 33 Evasion (%) 55 Item Schematics ----------------- None Robot Schematics ------------------ None Fabricated ------------ Nothing Repaired ---------- Nothing Studied --------- None Alien Tech Used ----------------- None Achievements -------------- Hehehe Release The Drones! Challenges ------------ None Game ------ Seed TerrainHypercooledSlamshotty Manual? 0 Play Time 00:50:01 Cumulative 13.1 hours Start 2026.02.19 @ 12:09:42 End 2026.02.19 @ 13:04:12 Sessions 1 Manual Loads 0 Difficulty Rogue Special Mode None Game No. 8 Rogue 5 Adventurer 0 Explorer 3 Win Type - Total 0 Types 0/0/0/0/0/0/0/0/0/0 Lore% 4 Gallery% 15 Achievement% 17 Wizard Run 0 Options --------- Layout 1 ASCII 0 Keyboard 0 Movement Arrows Keybinds 0 Fullscreen 2 Font 32/SmallcapsGlow Map View 50x35 Zoom Use 0% Tactical HUD 1 Map Filters NONE Filters NONE Steam 1 RUN: c5256104-82a6-420f-842d-2f2951ce5e44